fUSD/lending_fUSD_20250417
["ID","MTS","AMOUNT","RATE_DAILY","PERIOD"]
[358238699,1744864255945,-500.0,0.00052328,120]
[358238700,1744864255958,-702.14,0.00052328,120]
[358238701,1744864255972,-1252.03,0.00052328,35]
[358238702,1744864255985,-500.0,0.00052328,120]
[358238703,1744864255999,-500.0,0.00052328,2]
[358238704,1744864256012,-500.0,0.00052328,120]
[358238705,1744864256028,-658.588256,0.00052328,120]
[358238706,1744864256040,-658.588256,0.00052328,120]
[358238707,1744864256052,-658.588256,0.00052328,120]
[358238708,1744864256063,-500.0,0.00052328,120]
[358238709,1744864256077,-1617.9,0.00052328,120]
[358238710,1744864256090,-1213.04,0.00052328,120]
[358238711,1744864256105,-500.0,0.00052328,120]
[358238712,1744864256118,-658.588256,0.00052328,120]
[358238713,1744864256131,-1381.37,0.00052328,120]
[358238714,1744864256144,-658.588256,0.00052328,120]
[358238715,1744864256158,-658.588256,0.00052328,120]
[358238716,1744864256171,-1860.12,0.00052328,120]
[358238717,1744864256185,-500.0,0.00052328,120]
[358238718,1744864256201,-1480.04,0.00052328,120]
[358238719,1744864256213,-1344.55,0.00052328,120]
[358238720,1744864256226,-780.14,0.00052328,120]
[358238721,1744864256240,-500.0,0.00052328,120]
[358238722,1744864256252,-500.0,0.00052328,120]
[358238723,1744864256265,-660.85,0.00052328,120]
[358238724,1744864256277,-151.0,0.00052328,120]
[358238725,1744864256289,-151.0,0.00052328,120]
[358238726,1744864256301,-151.0,0.00052328,120]
[358238727,1744864256314,-500.0,0.00052328,120]
[358238728,1744864256330,-500.0,0.00052328,120]
[358238729,1744864256343,-500.0,0.00052328,120]
[358238730,1744864256354,-500.0,0.00052328,120]
[358238731,1744864256365,-1291.27,0.00052328,120]
[358238732,1744864256377,-573.95,0.00052328,120]
[358238733,1744864256391,-1465.71,0.00052328,120]
[358238734,1744864256409,-500.0,0.00052328,120]
[358238735,1744864256421,-500.0,0.00052328,120]
[358238736,1744864256433,-500.0,0.00052328,120]
[358238737,1744864256446,-571.47,0.00052328,120]
[358238738,1744864256457,-500.0,0.00052328,120]
[358238739,1744864256469,-500.0,0.00052328,120]
[358238740,1744864256482,-500.0,0.00052328,120]
[358238741,1744864256493,-500.0,0.00052328,120]
[358238742,1744864256505,-635.67,0.00052328,30]
[358238743,1744864256517,-899.56,0.00052328,120]
[358238744,1744864256529,-469.40652633,0.00052328,120]
[358238745,1744864256546,-500.0,0.00052328,120]
[358238746,1744864256558,-554.07604072,0.00052328,120]
[358238747,1744864256570,-500.0,0.00052328,120]
[358238748,1744864256582,-156.439196,0.00052328,120]
[358238749,1744864256595,-1629.33,0.00052328,120]
[358238750,1744864256607,-632.55851445,0.00052328,120]
[358238751,1744864256619,-919.25,0.00052328,120]
[358238752,1744864256631,-500.0,0.00052328,120]
[358238753,1744864256643,-500.0,0.00052328,120]
[358238754,1744864256655,-500.0,0.00052328,120]
[358238755,1744864256667,-500.0,0.00052328,120]
[358238756,1744864256680,-500.0,0.00052328,120]
[358238757,1744864256692,-1145.65,0.00052328,120]
[358238758,1744864256703,-500.0,0.00052328,120]
[358238759,1744864256716,-1297.18,0.00052328,120]
[358238760,1744864256727,-529.06,0.00052328,120]
[358238761,1744864256739,-865.03,0.00052328,120]
[358238762,1744864256751,-500.0,0.00052328,120]
[358238763,1744864256763,-843.38,0.00052328,120]
[358238764,1744864256774,-500.0,0.00052328,120]
[358238765,1744864256787,-500.0,0.00052328,120]
[358238766,1744864256799,-500.0,0.00052328,120]
[358238767,1744864256811,-538.08,0.00052328,120]
[358238768,1744864256822,-1404.30577716,0.00052328,120]
[358238769,1744864256850,-312.29422284,0.00052328,120]
[358238770,1744864256863,-1184.26,0.00052328,120]
[358238771,1744864256875,-780.396078,0.00052328,120]
[358238772,1744864256886,-780.396078,0.00052328,120]
[358238773,1744864256898,-780.396078,0.00052328,120]
[358238774,1744864256910,-500.0,0.00052328,120]
[358238775,1744864256922,-780.396078,0.00052328,120]
[358238776,1744864256935,-500.0,0.00052328,120]
[358238777,1744864256946,-780.396078,0.00052328,120]
[358238778,1744864256958,-780.396078,0.00052328,120]
[358238779,1744864256969,-151.0,0.00052328,120]
[358238780,1744864256980,-500.0,0.00052328,120]
[358238781,1744864256992,-151.0,0.00052328,120]
[358238782,1744864257003,-500.0,0.00052328,120]
[358238783,1744864257015,-61.86930916,0.00052328,120]
[358238784,1744864257717,-151.0,0.00052054,120]
[358238785,1744864257728,-151.0,0.00052287,120]
[358238786,1744864257740,-82.16329,0.00052298,120]
[358238787,1744864257754,-68.83671,0.00052298,120]
[358238788,1744864257766,-151.0,0.00052327,120]
[358238789,1744864257777,-49.151177,0.00052328,120]
[358238790,1744864257791,-39.97951384,0.00052328,120]
[358238791,1744864257803,-278.90083486,0.00052328,120]
[358238792,1744864257829,-829.40916514,0.00052328,120]
[358238793,1744864257839,-162.685943,0.00052328,120]
[358238794,1744864257851,-223.884248,0.00052328,120]
[358238795,1744864257862,-500.0,0.00052328,120]
[358238796,1744864257874,-1210.64,0.00052328,120]
[358238797,1744864257885,-500.0,0.00052328,120]
[358238798,1744864257896,-500.0,0.00052328,120]
[358238799,1744864257908,-633.36,0.00052328,120]
[358238800,1744864257919,-584.59991662,0.00052328,120]
[358238805,1744864327886,813.134042,7.945e-05,2]
[358238809,1744865231113,-158.31,0.00024932,2]
[358238810,1744865231140,-154.25,0.000335,31]
[358238811,1744865231161,-49.3254106,0.00033832,2]
[358238812,1744865250074,-101.6745894,0.00033832,2]
[358238813,1744865250095,-151.0,0.00033832,2]
[358238814,1744865250115,-151.0,0.00034271,2]
[358238815,1744865250139,-151.0,0.00034271,2]
[358238816,1744865250161,-250.0,0.0003685,2]
[358238817,1744865250181,-158.31,0.00038938,2]
[358238818,1744865250208,-154.25,0.000408,31]
[358238819,1744865250235,-154.25,0.000408,31]
[358238820,1744865250261,-125.13330782,0.000481,45]
[358238822,1744865431686,-151.0,0.000346,2]
[358238823,1744865431696,-151.0,0.000346,2]
[358238824,1744865431705,-150.0,0.00044179,2]
[358238825,1744865431715,-1400.0,0.00045179,120]
[358238826,1744865431724,-1600.0,0.00046179,120]
[358238827,1744865431737,-152.0,0.0004764,3]
[358238828,1744865431747,-29.11669218,0.000481,45]
[358238829,1744865431757,-154.25,0.000481,45]
[358238830,1744865431769,-172.0,0.00049131,2]
[358238831,1744865431779,-816.54,0.00049231,2]
[358238832,1744865431789,-842.9480191,0.00049684,4]
[358238833,1744865431802,-150.32,0.00049933,120]
[358238834,1744865431816,-346.92,0.00050184,120]
[358238835,1744865431827,-389.15,0.00050236,2]
[358238836,1744865431836,-352.25,0.00050264,2]
[358238837,1744865431845,-1375.73028938,0.000504,2]
[358238839,1744865431863,-194.40241062,0.000504,2]
[358238841,1744865431872,-300.0,0.00050499,10]
[358238844,1744865431881,-198.15031858,0.00050499,15]
[358238848,1744865431893,-501.84968142,0.00050499,15]
[358238850,1744865431903,-498.24031858,0.000505,120]
[358238852,1744865431915,-4679.80945541,0.000505,120]
[358238853,1744865431925,-775.28103736,0.000505,120]
[358238855,1744865431934,-521.40455299,0.000505,120]
[358238857,1744865431944,-189.88434929,0.000505,30]
[358238859,1744865431953,-180.64,0.0005055,2]
[358238860,1744865431963,-917.79629457,0.000506,120]
[358238862,1744865431973,-1000.0,0.00050612,120]
[358238864,1744865431982,-18792.66,0.00050612,2]
[358238865,1744865431991,-151.82,0.00050623,120]
[358238867,1744865432001,-176.92,0.00050677,2]
[358238868,1744865432010,-3044.69,0.00050695,2]
[358238870,1744865432020,-2000.0,0.000507,2]
[358238872,1744865432029,-152.0,0.00050949,4]
[358238873,1744865432039,-901.9,0.00051059,30]
[358238875,1744865432048,-793.45,0.00051059,30]
[358238877,1744865432057,-450.95,0.00051059,30]
[358238878,1744865432067,-1586.9,0.00051059,30]
[358238880,1744865432076,-450.95,0.00051059,30]
[358238881,1744865432085,-793.45,0.00051059,30]
[358238882,1744865432095,-450.95,0.00051059,30]
[358238883,1744865432104,-1586.9,0.00051059,30]
[358238884,1744865432113,-816.54,0.00051495,2]
[358238885,1744865432123,-523.3762,0.00051844,2]
[358238886,1744865432133,-1000.0,0.00051844,2]
[358238887,1744865432143,-3141.3039942,0.00051954,15]
[358238888,1744865432153,-1594.18053536,0.00051954,24]
[358238889,1744865432162,-171.88713461,0.00051954,28]
[358238890,1744865432171,-208.47644403,0.00052,120]
[358238891,1744865432183,-697.00991995,0.00052,120]
[358238892,1744865432201,-94.51363602,0.00052,120]
[358238893,1744865432210,-232.3834301,0.00052,120]
[358238894,1744865432220,-249.71039314,0.00052,120]
[358238895,1744865432229,-793.45,0.00052018,30]
[358238896,1744865432239,-773.247,0.00052018,95]
[358238897,1744865432248,-4327.59217016,0.00052044,4]
[358238898,1744865432259,-100605.42172384,0.00052044,4]
[358238899,1744865432268,-514.87,0.00052044,2]
[358238900,1744865432277,-514.87,0.00052044,2]
[358238901,1744865432286,-17488.8356489,0.00052045,4]
[358238902,1744865432295,-450.95,0.00052046,30]
[358238903,1744865432305,-1586.9,0.00052046,30]
[358238904,1744865432315,-450.95,0.00052046,30]
[358238905,1744865432324,-450.95,0.00052046,30]
[358238906,1744865432334,-450.95,0.00052046,30]
[358238907,1744865432343,-886.86,0.00052046,30]
[358238908,1744865432352,-450.95,0.00052046,30]
[358238909,1744865432361,-900.34,0.00052046,30]
[358238910,1744865432370,-1000.0,0.00052053,120]
[358238911,1744865432379,-500.0,0.00052054,120]
[358238912,1744865432388,-2682.89,0.00052054,120]
[358238913,1744865432397,-724.56,0.00052054,120]
[358238914,1744865432407,-500.0,0.00052054,120]
[358238915,1744865432416,-500.0,0.00052054,120]
[358238916,1744865432427,-500.0,0.00052054,120]
[358238917,1744865432439,-500.0,0.00052054,120]
[358238918,1744865432449,-500.0,0.00052054,120]
[358238919,1744865432458,-500.0,0.00052054,120]
[358238920,1744865432468,-500.0,0.00052054,120]
[358238921,1744865432482,-1039.38,0.00052054,120]
[358238922,1744865432492,-500.0,0.00052054,120]
[358238923,1744865432502,-500.0,0.00052054,120]
[358238924,1744865432511,-695.55,0.00052054,120]
[358238925,1744865432524,-500.0,0.00052054,120]
[358238926,1744865432535,-500.0,0.00052054,120]
[358238927,1744865432852,-500.0,0.00052054,120]
[358238928,1744865432870,-500.0,0.00052054,120]
[358238929,1744865432879,-500.0,0.00052054,120]
[358238930,1744865432889,-715.12,0.00052054,120]
[358238931,1744865432899,-500.0,0.00052054,120]
[358238932,1744865432908,-500.0,0.00052054,120]
[358238933,1744865432918,-500.0,0.00052054,120]
[358238934,1744865432927,-500.0,0.00052054,120]
[358238935,1744865432937,-521.84896271,0.00052054,120]
[358238936,1744865432946,-509.78369808,0.00052054,120]
[358238937,1744865432955,-502.29622703,0.00052054,120]
[358238938,1744865432965,-500.0,0.00052054,120]
[358238939,1744865432974,-643.63,0.00052054,120]
[358238940,1744865432984,-151.92553959,0.00052054,120]
[358238941,1744865432993,-518.30858764,0.00052054,120]
[358238942,1744865433003,-500.0,0.00052054,120]
[358238943,1744865433012,-505.12418633,0.00052054,120]
[358238944,1744865433022,-506.07910658,0.00052054,120]
[358238945,1744865433033,-5000.0,0.00052054,120]
[358238946,1744865433043,-500.0,0.00052054,120]
[358238947,1744865433053,-500.0,0.00052054,120]
[358238948,1744865433065,-224.43503646,0.00052054,120]
[358238949,1744865433075,-500.0,0.00052054,120]
[358238950,1744865433084,-500.0,0.00052054,120]
[358238951,1744865433094,-500.0,0.00052054,120]
[358238952,1744865433103,-500.0,0.00052054,120]
[358238953,1744865433114,-500.0,0.00052054,120]
[358238954,1744865433124,-500.0,0.00052054,120]
[358238955,1744865433134,-500.0,0.00052054,120]
[358238956,1744865433144,-582.7,0.00052054,30]
[358238957,1744865433154,-505.58987851,0.00052054,120]
[358238958,1744865433164,-1050.18,0.00052054,120]
[358238959,1744865433174,-500.0,0.00052054,120]
[358238960,1744865433184,-500.0,0.00052054,120]
[358238961,1744865433194,-500.0,0.00052054,120]
[358238962,1744865433204,-500.0,0.00052054,120]
[358238963,1744865433214,-884.35,0.00052054,120]
[358238964,1744865433225,-500.0,0.00052054,120]
[358238965,1744865433234,-500.0,0.00052054,120]
[358238966,1744865433244,-522.00552527,0.00052054,120]
[358238967,1744865433255,-500.0,0.00052054,120]
[358238968,1744865433265,-348.4534067,0.00052054,120]
[358238969,1744865433275,-500.0,0.00052054,120]
[358238970,1744865433285,-514.2613238,0.00052054,120]
[358238971,1744865433295,-509.62954382,0.00052054,120]
[358238972,1744865433305,-500.0,0.00052054,120]
[358238973,1744865433315,-500.0,0.00052054,120]
[358238974,1744865433325,-514.38896866,0.00052054,120]
[358238975,1744865433335,-695.08,0.00052054,2]
[358238976,1744865433345,-500.0,0.00052054,120]
[358238977,1744865433355,-500.0,0.00052054,120]
[358238978,1744865433365,-500.0,0.00052054,120]
[358238979,1744865433375,-659.29,0.00052054,120]
[358238980,1744865433385,-500.0,0.00052054,120]
[358238981,1744865433395,-500.0,0.00052054,120]
[358238982,1744865433405,-500.0,0.00052054,120]
[358238983,1744865433415,-500.0,0.00052054,120]
[358238984,1744865433425,-500.0,0.00052054,120]
[358238985,1744865433434,-500.0,0.00052054,120]
[358238986,1744865433443,-500.0,0.00052054,120]
[358238987,1744865433453,-500.0,0.00052054,120]
[358238988,1744865433462,-1000.0,0.00052054,120]
[358238989,1744865433473,-500.0,0.00052054,120]
[358238990,1744865433483,-500.0,0.00052054,120]
[358238991,1744865433492,-573.68099509,0.00052054,120]
[358238992,1744865433502,-751.2,0.00052054,120]
[358238993,1744865433512,-500.0,0.00052054,120]
[358238994,1744865433523,-1908.78,0.00052054,120]
[358238995,1744865433534,-500.0,0.00052054,120]
[358238996,1744865433545,-500.0,0.00052054,120]
[358238997,1744865433555,-504.2493253,0.00052054,120]
[358238998,1744865433565,-500.0,0.00052054,120]
[358238999,1744865433574,-500.0,0.00052054,120]
[358239000,1744865433584,-505.9,0.00052054,120]
[358239001,1744865433594,-789.58,0.00052054,120]
[358239002,1744865433603,-500.0,0.00052054,120]
[358239003,1744865433613,-238.67354013,0.00052054,120]
[358239004,1744865433623,-500.0,0.00052054,120]
[358239005,1744865433633,-500.0,0.00052054,120]
[358239006,1744865433642,-500.0,0.00052054,120]
[358239007,1744865433652,-500.0,0.00052054,120]
[358239008,1744865433662,-500.0,0.00052054,120]
[358239009,1744865433672,-500.0,0.00052054,120]
[358239010,1744865433682,-514.16540103,0.00052054,120]
[358239011,1744865433692,-500.0,0.00052054,120]
[358239012,1744865433702,-500.0,0.00052054,120]
[358239013,1744865433711,-500.0,0.00052054,120]
[358239014,1744865433721,-2056.29,0.00052054,120]
[358239015,1744865433731,-500.0,0.00052054,120]
[358239016,1744865433741,-815.88,0.00052054,120]
[358239017,1744865433751,-500.0,0.00052054,120]
[358239018,1744865433761,-1765.95,0.00052054,120]
[358239019,1744865433771,-1765.95,0.00052054,120]
[358239020,1744865433780,-684.07,0.00052054,120]
[358239021,1744865433790,-1238.36,0.00052054,120]
[358239022,1744865433801,-683.96,0.00052054,120]
[358239023,1744865433812,-2787.85,0.00052054,120]
[358239024,1744865433824,-972.18,0.00052054,120]
[358239025,1744865433834,-500.0,0.00052054,120]
[358239026,1744865433845,-594.08,0.00052054,120]
[358239027,1744865433857,-500.0,0.00052054,120]
[358239028,1744865433868,-500.0,0.00052054,120]
[358239029,1744865433878,-500.0,0.00052054,120]
[358239030,1744865433889,-500.0,0.00052054,120]
[358239031,1744865433899,-517.78,0.00052054,120]
[358239032,1744865433909,-849.57,0.00052054,120]
[358239033,1744865433919,-552.05,0.00052054,120]
[358239034,1744865433930,-500.0,0.00052054,120]
[358239035,1744865433940,-1142.78,0.00052054,120]
[358239036,1744865433950,-500.0,0.00052054,120]
[358239037,1744865433960,-1639.69,0.00052054,120]
[358239038,1744865433970,-503.27154328,0.00052054,120]
[358239039,1744865433980,-500.0,0.00052054,120]
[358239040,1744865433990,-517.11623414,0.00052054,120]
[358239041,1744865433999,-500.0,0.00052054,120]
[358239042,1744865434010,-500.0,0.00052054,120]
[358239043,1744865434019,-500.0,0.00052054,120]
[358239044,1744865434030,-500.0,0.00052054,120]
[358239045,1744865434039,-500.0,0.00052054,2]
[358239046,1744865434049,-291.50459342,0.00052054,120]
[358239047,1744865434059,-4694.02,0.00052054,120]
[358239048,1744865434069,-829.12,0.00052054,120]
[358239049,1744865434079,-881.88,0.00052054,120]
[358239050,1744865434088,-500.0,0.00052054,120]
[358239051,1744865434098,-650.69,0.00052054,120]
[358239052,1744865434108,-845.37,0.00052054,120]
[358239053,1744865434118,-500.0,0.00052054,120]
[358239054,1744865434128,-500.0,0.00052054,2]
[358239055,1744865434137,-1147.69,0.00052054,35]
[358239056,1744865434147,-500.0,0.00052054,120]
[358239057,1744865434157,-500.0,0.00052054,120]
[358239058,1744865434167,-1266.26,0.00052054,120]
[358239059,1744865434176,-500.0,0.00052054,120]
[358239060,1744865434185,-778.09,0.00052054,120]
[358239061,1744865434195,-500.0,0.00052054,120]
[358239062,1744865434205,-1594.94,0.00052054,120]
[358239063,1744865434214,-1283.57,0.00052054,120]
[358239064,1744865434224,-1288.98,0.00052054,120]
[358239065,1744865434234,-825.67,0.00052054,120]
[358239066,1744865434243,-500.0,0.00052054,120]
[358239067,1744865434253,-787.2,0.00052054,120]
[358239068,1744865434262,-526.12,0.00052054,120]
[358239069,1744865434272,-506.80778416,0.00052054,120]
[358239070,1744865434282,-500.0,0.00052054,120]
[358239071,1744865434292,-500.0,0.00052054,120]
[358239072,1744865434302,-1705.11,0.00052054,120]
[358239073,1744865434312,-500.0,0.00052054,120]
[358239074,1744865434322,-513.28104484,0.00052054,120]
[358239075,1744865434332,-864.27,0.00052054,120]
[358239076,1744865434342,-500.0,0.00052054,120]
[358239077,1744865434351,-500.0,0.00052054,120]
[358239078,1744865434360,-627.07065611,0.00052054,120]
[358239079,1744865434381,-8.19934389,0.00052054,120]
[358239080,1744865434390,-500.0,0.00052054,120]
[358239081,1744865434399,-585.47,0.00052054,120]
[358239082,1744865434410,-329.85990675,0.00052054,120]
[358239083,1744865434419,-1183.66,0.00052054,120]
[358239084,1744865434430,-500.0,0.00052054,120]
[358239085,1744865434440,-500.0,0.00052054,120]
[358239086,1744865434449,-500.0,0.00052054,120]
[358239087,1744865434459,-500.0,0.00052054,120]
[358239088,1744865434468,-500.0,0.00052054,120]
[358239089,1744865434478,-500.0,0.00052054,120]
[358239090,1744865434487,-289.44942899,0.00052054,120]
[358239091,1744865434496,-1280.94,0.00052054,120]
[358239092,1744865434506,-500.0,0.00052054,120]
[358239093,1744865434516,-500.0,0.00052054,120]
[358239094,1744865434525,-500.0,0.00052054,120]
[358239095,1744865434535,-1493.55,0.00052054,120]
[358239096,1744865434545,-500.0,0.00052054,120]
[358239097,1744865434555,-500.0,0.00052054,120]
[358239098,1744865434565,-500.0,0.00052054,120]
[358239099,1744865434574,-500.0,0.00052054,120]
[358239100,1744865434583,-500.0,0.00052054,120]
[358239101,1744865434593,-500.0,0.00052054,120]
[358239102,1744865434602,-500.0,0.00052054,120]
[358239103,1744865434611,-500.0,0.00052054,120]
[358239104,1744865434621,-1343.57,0.00052054,120]
[358239105,1744865434630,-834.58,0.00052054,120]
[358239106,1744865434640,-500.0,0.00052054,120]
[358239107,1744865434649,-1660.21,0.00052054,120]
[358239108,1744865434659,-1151.42,0.00052054,120]
[358239109,1744865434668,-538.5,0.00052054,120]
[358239110,1744865434678,-580.58,0.00052054,120]
[358239111,1744865434687,-1085.57,0.00052054,120]
[358239112,1744865434698,-500.0,0.00052054,120]
[358239113,1744865434707,-500.0,0.00052054,120]
[358239114,1744865434717,-500.0,0.00052054,120]
[358239115,1744865434726,-1015.95,0.00052054,120]
[358239116,1744865434734,-500.0,0.00052054,120]
[358239117,1744865434745,-1762.93,0.00052054,120]
[358239118,1744865434755,-215.956194,0.00052054,120]
[358239119,1744865434765,-500.0,0.00052054,120]
[358239120,1744865434774,-791.68,0.00052054,120]
[358239121,1744865434784,-872.68,0.00052054,120]
[358239122,1744865434794,-1187.29,0.00052054,120]
[358239123,1744865434804,-500.0,0.00052054,120]
[358239124,1744865434817,-1070.81,0.00052054,120]
[358239125,1744865434826,-500.0,0.00052054,120]
[358239126,1744865434836,-500.0,0.00052054,120]
[358239127,1744865434845,-6472.61,0.00052054,120]
[358239128,1744865434855,-500.0,0.00052054,120]
[358239129,1744865434865,-550.17,0.00052054,120]
[358239130,1744865434874,-519.25,0.00052054,120]
[358239131,1744865434884,-500.0,0.00052054,30]
[358239132,1744865434894,-1532.97,0.00052054,120]
[358239133,1744865434904,-816.4,0.00052054,120]
[358239134,1744865434914,-834.61,0.00052054,120]
[358239135,1744865434924,-467.927295,0.00052054,120]
[358239136,1744865434934,-500.0,0.00052054,120]
[358239137,1744865434944,-500.0,0.00052054,120]
[358239138,1744865434954,-769.09,0.00052054,120]
[358239139,1744865434964,-500.0,0.00052054,120]
[358239140,1744865434975,-1615.22,0.00052054,120]
[358239141,1744865434985,-500.0,0.00052054,120]
[358239142,1744865434995,-500.0,0.00052054,120]
[358239143,1744865435004,-500.0,0.00052054,120]
[358239144,1744865435014,-983.39,0.00052054,120]
[358239145,1744865435023,-500.0,0.00052054,120]
[358239146,1744865435033,-168.462309,0.00052054,120]
[358239147,1744865435043,-612.55254004,0.00052054,120]
[358239148,1744865435052,-438.05657617,0.00052054,120]
[358239149,1744865435063,-500.0,0.00052054,120]
[358239150,1744865435072,-1743.63,0.00052054,120]
[358239151,1744865435081,-590.61,0.00052054,120]
[358239152,1744865435091,-2314.33,0.00052054,120]
[358239153,1744865435100,-500.0,0.00052054,120]
[358239154,1744865435110,-1332.65,0.00052054,120]
[358239155,1744865435119,-500.0,0.00052054,120]
[358239156,1744865435128,-781.99,0.00052054,120]
[358239157,1744865435137,-500.0,0.00052054,120]
[358239158,1744865435147,-500.0,0.00052054,120]
[358239159,1744865435157,-500.0,0.00052054,120]
[358239160,1744865435167,-1037.5,0.00052054,30]
[358239161,1744865435176,-662.19,0.00052054,120]
[358239162,1744865435188,-1601.55,0.00052054,120]
[358239163,1744865435198,-498.13910285,0.00052054,120]
[358239164,1744865435208,-1165.23,0.00052054,120]
[358239165,1744865435218,-500.0,0.00052054,120]
[358239166,1744865435228,-640.71,0.00052054,120]
[358239167,1744865435238,-2268.22,0.00052054,120]
[358239168,1744865435247,-527.31071435,0.00052054,120]
[358239169,1744865435257,-739.24,0.00052054,120]
[358239170,1744865435267,-500.0,0.00052054,120]
[358239171,1744865435276,-500.0,0.00052054,120]
[358239172,1744865435286,-1527.45,0.00052054,120]
[358239173,1744865435296,-500.0,0.00052054,120]
[358239174,1744865435306,-634.23,0.00052054,120]
[358239175,1744865435316,-500.0,0.00052054,120]
[358239176,1744865435325,-576.09,0.00052054,120]
[358239177,1744865435334,-500.0,0.00052054,120]
[358239178,1744865435344,-836.52,0.00052054,120]
[358239179,1744865435353,-500.0,0.00052054,120]
[358239180,1744865435363,-1908.66,0.00052054,120]
[358239181,1744865435373,-500.0,0.00052054,120]
[358239182,1744865435382,-769.36,0.00052054,120]
[358239183,1744865435392,-500.0,0.00052054,120]
[358239184,1744865435401,-500.0,0.00052054,120]
[358239185,1744865435410,-500.0,0.00052054,120]
[358239186,1744865435421,-500.0,0.00052054,120]
[358239187,1744865435431,-500.0,0.00052054,120]
[358239188,1744865435441,-500.0,0.00052054,30]
[358239189,1744865435450,-1351.05,0.00052054,120]
[358239190,1744865435459,-500.0,0.00052054,120]
[358239191,1744865435469,-1041.96,0.00052054,120]
[358239192,1744865435478,-500.0,0.00052054,120]
[358239193,1744865435487,-500.0,0.00052054,120]
[358239194,1744865435497,-582.72,0.00052054,120]
[358239195,1744865435507,-677.67,0.00052054,120]
[358239196,1744865435518,-1486.83,0.00052054,120]
[358239197,1744865435528,-636.57,0.00052054,120]
[358239198,1744865435537,-1645.19,0.00052054,120]
[358239199,1744865435547,-558.15,0.00052054,120]
[358239200,1744865435557,-618.36,0.00052054,120]
[358239201,1744865435567,-500.0,0.00052054,120]
[358239202,1744865435577,-559.80703594,0.00052054,120]
[358239203,1744865435587,-500.0,0.00052054,120]
[358239204,1744865435598,-500.0,0.00052054,120]
[358239205,1744865435607,-500.0,0.00052054,120]
[358239206,1744865435617,-500.0,0.00052054,120]
[358239207,1744865435626,-1203.52,0.00052054,120]
[358239208,1744865435635,-500.0,0.00052054,120]
[358239209,1744865435645,-1796.09,0.00052054,120]
[358239210,1744865435654,-1000.0,0.00052054,120]
[358239211,1744865435664,-500.0,0.00052054,120]
[358239212,1744865435673,-522.6,0.00052054,120]
[358239213,1744865435683,-1302.71,0.00052054,120]
[358239214,1744865435692,-1932.16,0.00052054,120]
[358239215,1744865435702,-500.0,0.00052054,120]
[358239216,1744865435712,-635.32,0.00052054,120]
[358239217,1744865435721,-500.0,0.00052054,120]
[358239218,1744865435731,-500.0,0.00052054,120]
[358239219,1744865435740,-500.0,0.00052054,120]
[358239220,1744865435749,-500.0,0.00052054,120]
[358239221,1744865435759,-1254.0,0.00052054,120]
[358239222,1744865435769,-500.0,0.00052054,120]
[358239223,1744865435779,-500.0,0.00052054,120]
[358239224,1744865435788,-644.62515454,0.00052054,120]
[358239225,1744865435798,-500.0,0.00052054,120]
[358239226,1744865435808,-500.0,0.00052054,120]